[Event "1000GM NY Winter GM-B 2024"]
[Site "New York"]
[Date "2024.01.12"]
[Round "2.2"]
[White "Levine, Joseph"]
[Black "Griffith, Kyron"]
[Result "1/2-1/2"]
[ECO "B99"]
[WhiteElo "2376"]
[BlackElo "2367"]
[Annotator "RC"]
[PlyCount "79"]
[EventDate "2024.01.10"]
[EventType "tourn"]
[EventCountry "USA"]
[SourceTitle "playchess.com"]
[Source "ChessBase"]
[SourceQuality "1"]
[TimeControl "5400+30"]

1. e4 {[%emt 0:00:03]} c5 {[%emt 0:00:37]} 2. Nf3 {[%emt 0:00:06]} d6 {[%emt 0:01:28]} 3. d4 {[%emt 0:00:08]} cxd4 {[%emt 0:00:04]} 4. Nxd4 {[%emt 0:00:06]} Nf6 {[%emt 0:00:08]} 5. Nc3 {[%emt 0:00:04]} a6 {[%emt 0:00:05]} 6. Bg5 {[%emt 0:00:34]} e6 {[%emt 0:03:04]} 7. f4 {[%emt 0:00:07]} Be7 {[%emt 0:00:51]} 8. Qf3 {[%emt 0:00:25]} Qc7 {[%emt 0:00:15]} 9. O-O-O {[%emt 0:00:33]} Nbd7 {[%emt 0:00:20]} 10. g4 {[%emt 0:00:26]} h6 {[%emt 0:00:36]} 11. Bxf6 {[%emt 0:00:55]} Bxf6 {[%emt 0:00:19]} 12. h4 {[%emt 0:00:34]} Nb6 {[%emt 0:01:21]} 13. g5 {[%emt 0:00:48]} Bxd4 {[%emt 0:00:15]} 14. Rxd4 {[%emt 0:00:03]} Qc5 {[%emt 0:00:51]} 15. Rd2 {[%emt 0:00:41]} Bd7 {[%emt 0:02:35]} 16. Be2 {[%emt 0:00:29]} O-O-O {[%emt 0:02:29]} 17. Rhd1 {[%emt 0:00:22]} Bc6 {[%emt 0:02:56]} 18. g6 {[%emt 0:01:12]} fxg6 {[%emt 0:16:21]} 19. Rd4 {[%emt 0:00:44]} e5 {[%emt 0:11:09]} 20. b4 {[%emt 0:00:56]} Qxd4 {[%emt 0:00:21]} 21. Rxd4 {[%emt 0:00:03]} exd4 {[%emt 0:00:05]} 22. b5 {[%emt 0:00:51]} axb5 {[%emt 0:13:16]} 23. Nxb5 {[%emt 0:02:20]} Rhe8 {[%emt 0:02:04]} 24. Nxd4 {[%emt 0:17:29]} Bxe4 {[%emt 0:04:19]} 25. Qb3 {[%emt 0:03:14]} Nd7 {[%emt 0:06:21]} 26. Qf7 {[%emt 0:20:09]} Kb8 {[%emt 0:09:45]} 27. Qxg7 {[%emt 0:12:40]} Nc5 {[%emt 0:00:38]} 28. Qxh6 {[%emt 0:08:47]} Ne6 {[%emt 0:01:20]} 29. Nxe6 {[%emt 0:01:18]} Rxe6 {[%emt 0:00:02]} 30. h5 {[%emt 0:07:29]} Rc8 {[%emt 0:03:18]} 31. Bg4 {[%emt 0:15:43]} Rxc2+ {[%emt 0:01:06]} 32. Kd1 {[%emt 0:00:01]} Re8 {[%emt 0:00:55]} 33. Bf3 {[%emt 0:00:55]} Rh2 {[%emt 0:08:20]} 34. Bxe4 {[%emt 0:00:05]} Rxe4 {[%emt 0:00:05]} 35. Qxg6 {[%emt 0:00:34]} Rd4+ {[%emt 0:01:35]} 36. Ke1 {[%emt 0:00:44]} Rdd2 {[%emt 0:01:30]} 37. Qe8+ {[%emt 0:00:45]} Kc7 {[%emt 0:00:01]} 38. Qe7+ {[%emt 0:00:27]} Kc8 {[%emt 0:00:57]} 39. Qe8+ {[%emt 0:03:06]} Kc7 {[%emt 0:00:01]} 40. Qe7+ {[%emt 0:01:21]} 1/2-1/2

[Event "1000GM NY Winter GM-B 2024"]
[Site "New York"]
[Date "2024.01.12"]
[Round "2.3"]
[White "Graif, William"]
[Black "Nakada, Akira"]
[Result "0-1"]
[ECO "B12"]
[WhiteElo "2302"]
[BlackElo "2374"]
[Annotator "RC"]
[PlyCount "62"]
[EventDate "2024.01.10"]
[EventType "tourn"]
[EventCountry "USA"]
[SourceTitle "playchess.com"]
[Source "ChessBase"]
[SourceQuality "1"]
[TimeControl "5400+30"]

1. e4 {[%emt 1:31:00]} c6 {[%emt 0:03:50]} 2. d4 {[%emt 0:00:00]} d5 {[%emt 0:00:09]} 3. e5 {[%emt 0:00:00]} c5 {[%emt 0:00:14]} 4. Nf3 {[%emt 0:00:00]} cxd4 {[%emt 0:00:34]} 5. Nxd4 {[%emt 0:00:00]} Nc6 {[%emt 0:01:06]} 6. c4 {[%emt 0:00:00]} e6 {[%emt 0:02:25]} 7. Nc3 {[%emt 0:00:00]} Bb4 {[%emt 0:01:04]} 8. Nxc6 {[%emt 0:00:00]} bxc6 {[%emt 0:01:19]} 9. Bd3 {[%emt 0:00:00]} Ne7 {[%emt 0:03:26]} 10. cxd5 {[%emt 0:00:00]} Nxd5 {[%emt 0:14:13]} 11. O-O {[%emt 0:00:00]} Nxc3 {[%emt 0:07:51]} 12. bxc3 {[%emt 0:00:00]} Bxc3 {[%emt 0:05:38]} 13. Rb1 {[%emt 0:00:00]} Bxe5 {[%emt 0:03:17]} 14. Qc2 {[%emt 0:00:00]} Qc7 {[%emt 0:06:57]} 15. Re1 {[%emt 0:00:00]} Bxh2+ {[%emt 0:13:49]} 16. Kh1 {[%emt 0:00:00]} Bd6 {[%emt 0:00:21]} 17. Bb2 {[%emt 0:00:00]} f6 {[%emt 0:00:54]} 18. Re3 {[%emt 0:00:00]} Rb8 {[%emt 0:04:45]} 19. Bxh7 {[%emt 0:00:00]} Kf8 {[%emt 0:06:52]} 20. Kg1 {[%emt 0:00:00]} Rb4 {[%emt 0:02:16]} 21. Rh3 {[%emt 0:00:00]} e5 {[%emt 0:00:27]} 22. Rc3 {[%emt 0:03:28]} Rh4 {[%emt 0:04:51]} 23. Rxc6 {[%emt 0:00:19]} R8xh7 {[%emt 0:00:04]} 24. f4 {[%emt 0:02:12]} Bf5 {[%emt 0:02:54]} 25. Qc3 {[%emt 0:01:35]} Qb8 {[%emt 0:02:53]} 26. Rxd6 {[%emt 0:02:27]} Rh1+ {[%emt 0:01:24]} 27. Kf2 {[%emt 0:00:02]} Rxb1 {[%emt 0:00:06]} 28. Ba3 {[%emt 0:00:10]} Kf7 {[%emt 0:00:24]} 29. fxe5 {[%emt 0:00:56]} Qb5 {[%emt 0:01:15]} 30. e6+ {[%emt 0:01:13]} Bxe6 {[%emt 0:00:07]} 31. Qc7+ {[%emt 0:00:24]} Kg6 {[%emt 0:00:08]} 0-1

[Event "1000GM NY Winter GM-B 2024"]
[Site "New York"]
[Date "2024.01.12"]
[Round "2.5"]
[White "Paragua, Mark"]
[Black "Lee, Alice"]
[Result "1-0"]
[ECO "D37"]
[WhiteElo "2448"]
[BlackElo "2379"]
[Annotator "RC"]
[PlyCount "59"]
[EventDate "2024.01.10"]
[EventType "tourn"]
[EventCountry "USA"]
[SourceTitle "playchess.com"]
[Source "ChessBase"]
[SourceQuality "1"]
[TimeControl "5400+30"]

1. Nf3 {[%emt 0:10:21]} d5 {[%emt 0:00:09]} 2. c4 {[%emt 0:00:10]} e6 {[%emt 0:00:29]} 3. d4 {[%emt 0:02:35]} Nf6 {[%emt 0:00:09]} 4. Nc3 {[%emt 0:00:26]} Nbd7 {[%emt 0:00:16]} 5. c5 {[%emt 0:03:28]} b6 {[%emt 0:00:17]} 6. b4 {[%emt 0:07:21]} c6 {[%emt 0:16:10]} 7. Bf4 {[%emt 0:04:16]} a5 {[%emt 0:05:26]} 8. a3 {[%emt 0:02:50]} Ne4 {[%emt 0:08:19]} 9. Nxe4 {[%emt 0:02:48]} dxe4 {[%emt 0:00:06]} 10. Nd2 {[%emt 0:00:26]} g5 {[%emt 0:05:01]} 11. Bg3 {[%emt 0:03:29]} f5 {[%emt 0:23:35]} 12. e3 {[%emt 0:01:22]} h5 {[%emt 0:04:40]} 13. h4 {[%emt 0:01:49]} g4 {[%emt 0:01:59]} 14. b5 {[%emt 0:05:30]} Bb7 {[%emt 0:00:57]} 15. Qb3 {[%emt 0:01:12]} Kf7 {[%emt 0:01:26]} 16. Bc4 {[%emt 0:18:36]} Rh6 {[%emt 0:00:10]} 17. bxc6 {[%emt 0:01:32]} Bxc6 {[%emt 0:00:09]} 18. Rb1 {[%emt 0:01:16]} a4 {[%emt 0:05:13]} 19. Qa2 {[%emt 0:00:48]} bxc5 {[%emt 0:06:40]} 20. d5 {[%emt 0:00:24]} exd5 {[%emt 0:00:03]} 21. Bxd5+ {[%emt 0:00:06]} Ke8 {[%emt 0:06:57]} 22. Bf7+ {[%emt 0:04:10]} Ke7 {[%emt 0:00:03]} 23. Bf4 {[%emt 0:00:08]} c4 {[%emt 0:03:40]} 24. Bxh6 {[%emt 0:02:12]} Bxh6 {[%emt 0:00:41]} 25. Qxc4 {[%emt 0:00:10]} Bg7 {[%emt 0:02:11]} 26. Qxc6 {[%emt 0:00:34]} Kxf7 {[%emt 0:00:07]} 27. Rb7 {[%emt 0:00:35]} Ke7 {[%emt 0:00:08]} 28. Nc4 {[%emt 0:00:50]} Qc8 {[%emt 0:02:08]} 29. Rc7 {[%emt 0:01:08]} Qd8 {[%emt 0:00:02]} 30. Nb6 {[%emt 0:00:49]} 1-0

[Event "1000GM NY Winter GM-B 2024"]
[Site "New York"]
[Date "2024.01.13"]
[Round "3.1"]
[White "Lee, Alice"]
[Black "Adewumi, Tanitoluwa"]
[Result "1/2-1/2"]
[ECO "E01"]
[WhiteElo "2379"]
[BlackElo "2280"]
[Annotator "RC"]
[PlyCount "98"]
[EventDate "2024.01.10"]
[EventType "tourn"]
[EventCountry "USA"]
[SourceTitle "playchess.com"]
[Source "ChessBase"]
[SourceQuality "1"]
[TimeControl "5400+30"]

1. d4 {[%emt 0:00:03]} Nf6 {[%emt 0:00:09]} 2. c4 {[%emt 0:00:05]} e6 {[%emt 0:00:05]} 3. g3 {[%emt 0:00:04]} d5 {[%emt 0:00:04]} 4. Bg2 {[%emt 0:00:15]} Bb4+ {[%emt 0:01:18]} 5. Bd2 {[%emt 0:00:07]} Bd6 {[%emt 0:01:27]} 6. Nf3 {[%emt 0:00:09]} O-O {[%emt 0:00:51]} 7. O-O {[%emt 0:00:08]} Nbd7 {[%emt 0:00:04]} 8. Bc3 {[%emt 0:04:37]} b6 {[%emt 0:01:01]} 9. cxd5 {[%emt 0:01:00]} exd5 {[%emt 0:00:09]} 10. Bd2 {[%emt 0:03:16]} Ne4 {[%emt 0:02:19]} 11. Nc3 {[%emt 0:00:24]} Nxc3 {[%emt 0:00:17]} 12. bxc3 {[%emt 0:04:26]} Re8 {[%emt 0:01:48]} 13. Bg5 {[%emt 0:04:06]} Nf6 {[%emt 0:00:32]} 14. Nd2 {[%emt 0:01:32]} Bb7 {[%emt 0:01:20]} 15. Re1 {[%emt 0:08:43]} h6 {[%emt 0:07:11]} 16. Bxf6 {[%emt 0:00:23]} Qxf6 {[%emt 0:00:06]} 17. e4 {[%emt 0:07:10]} dxe4 {[%emt 0:00:03]} 18. Nxe4 {[%emt 0:00:07]} Bxe4 {[%emt 0:00:07]} 19. Bxe4 {[%emt 0:00:08]} Rad8 {[%emt 0:00:28]} 20. Qa4 {[%emt 0:06:58]} c5 {[%emt 0:02:00]} 21. Rad1 {[%emt 0:02:37]} cxd4 {[%emt 0:03:35]} 22. cxd4 {[%emt 0:00:29]} Re7 {[%emt 0:00:12]} 23. Re3 {[%emt 0:11:58]} g6 {[%emt 0:00:45]} 24. Kg2 {[%emt 0:02:28]} Kg7 {[%emt 0:00:30]} 25. h4 {[%emt 0:02:47]} h5 {[%emt 1:16:39]} 26. Qb3 {[%emt 0:03:59]} Bc7 {[%emt 0:00:00]} 27. Bf3 {[%emt 0:03:28]} Red7 {[%emt 0:00:00]} 28. d5 {[%emt 0:00:09]} Bd6 {[%emt 0:00:00]} 29. Qc3 {[%emt 0:02:24]} Rc7 {[%emt 0:00:00]} 30. Qxf6+ {[%emt 0:02:45]} Kxf6 {[%emt 0:00:00]} 31. Be2 {[%emt 0:03:35]} Rc2 {[%emt 0:00:00]} 32. a4 {[%emt 0:00:12]} Bc5 {[%emt 0:00:00]} 33. Rf3+ {[%emt 0:00:08]} Kg7 {[%emt 0:00:00]} 34. Bd3 {[%emt 0:01:58]} Ra2 {[%emt 0:00:00]} 35. Bb5 {[%emt 0:00:12]} Rc2 {[%emt 0:00:00]} 36. Bd3 {[%emt 0:00:38]} Ra2 {[%emt 0:00:00]} 37. Bb5 {[%emt 0:00:05]} a6 {[%emt 0:00:00]} 38. Bxa6 {[%emt 0:00:21]} Rxa4 {[%emt 0:00:00]} 39. Bb5 {[%emt 0:00:26]} Rb4 {[%emt 0:00:00]} 40. Bc6 {[%emt 0:00:42]} Rb2 {[%emt 0:00:00]} 41. Rc1 {[%emt 0:00:36]} Rd6 {[%emt 0:00:00]} 42. Rcc3 {[%emt 0:05:27]} Rf6 {[%emt 0:00:00]} 43. Rxf6 {[%emt 0:00:04]} Kxf6 {[%emt 0:00:00]} 44. Rf3+ {[%emt 0:00:05]} Ke7 {[%emt 0:00:00]} 45. d6+ {[%emt 0:00:29]} Bxd6 {[%emt 0:00:00]} 46. Bd5 {[%emt 0:00:09]} f6 {[%emt 0:00:00]} 47. Re3+ {[%emt 0:00:22]} Be5 {[%emt 0:00:00]} 48. Ra3 {[%emt 0:00:48]} Kd6 {[%emt 0:00:00]} 49. Bf7 {[%emt 0:00:20]} Bd4 {[%emt 0:00:00]} 1/2-1/2

[Event "1000GM NY Winter GM-B 2024"]
[Site "New York"]
[Date "2024.01.13"]
[Round "3.2"]
[White "Koustav Chatterjee"]
[Black "Paragua, Mark"]
[Result "1/2-1/2"]
[ECO "B52"]
[WhiteElo "2546"]
[BlackElo "2448"]
[Annotator "TA"]
[PlyCount "40"]
[EventDate "2024.01.10"]
[EventType "tourn"]
[EventCountry "USA"]
[SourceTitle "playchess.com"]
[Source "ChessBase"]
[SourceQuality "1"]
[TimeControl "5400+30"]

{[%evp 9,40,8,26,11,18,26,37,-14,-14,-15,-12,-28,-14,-11,-11,-11,0,0,0,0,0,-15,-8,-22,-29,-25,-13,-24,-23,-37,-26,-61,-43]} 1. e4 {[%emt 0:00:03]} c5 {[%emt 0:00:09]} 2. Nf3 {[%emt 0:00:05]} d6 {[%emt 0:00:05]} 3. Bb5+ {[%emt 0:00:05]} Bd7 {[%emt 0:00:40]} 4. c4 {[%emt 0:00:07]} g6 {[%emt 0:00:45]} 5. O-O {[%emt 0:02:41]} Bg7 {[%emt 0:00:17]} 6. Nc3 {[%emt 0:00:05] B52: Sicilian: Moscow Variation with 3...Bd7.} Nf6 {[%emt 0:00:31]} 7. Bxd7+ {[%emt 0:00:58]} Nfxd7 {[%emt 0:05:46] [#] 7...Nbxd7 is a critical line.} 8. d3 $146 {[%emt 1:30:26]} (8. d4 $14) ({Predecessor:} 8. d4 cxd4 9. Nxd4 Nc6 10. Be3 O-O 11. Rc1 Nde5 12. b3 Rc8 13. h3 a6 14. Nd5 Nd7 15. Qd2 e6 16. Bg5 Nf6 17. Nxf6+ Bxf6 18. Bxf6 Qxf6 19. Nxc6 Rxc6 {½-½ Yuan,Q (2373)-Visakh,N (2506) Titled Tuesday intern op 10th May Early blitz 2022 (6)}) 8... Nc6 {[%emt 0:00:37]} 9. Rb1 {[%emt 0:00:00]} O-O {[%emt 0:00:35]} 10. Bd2 {[%emt 0:00:00]} a6 {[%emt 0:01:40]} 11. a3 {[%emt 0:00:00]} Rb8 {[%emt 0:05:51]} 12. b4 {[%emt 0:00:00]} cxb4 {[%emt 0:01:34]} 13. axb4 {[%emt 0:00:00]} b5 {[%emt 0:00:11]} 14. cxb5 {[%emt 0:00:00]} axb5 {[%emt 0:00:06]} 15. Ne2 {[%emt 0:00:00]} Nb6 {[%emt 0:01:35]} 16. d4 {[%emt 0:00:00]} e6 {[%emt 0:11:54]} 17. Bf4 {[%emt 0:00:00]} Qd7 {[%emt 0:08:05]} 18. Qd3 {[%emt 0:00:00]} Nc4 {[%emt 0:05:35]} 19. Nd2 {[%emt 0:00:00]} Rbc8 {[%emt 0:18:17]} 20. d5 {[%emt 0:00:00]} N6e5 {[%emt 0:36:17] Weighted Error Value: White=0.12 (very precise) /Black=0.04 (flawless)} 1/2-1/2

[Event "1000GM NY Winter GM-B 2024"]
[Site "New York"]
[Date "2024.01.13"]
[Round "3.4"]
[White "Griffith, Kyron"]
[Black "Graif, William"]
[Result "1-0"]
[ECO "B23"]
[WhiteElo "2367"]
[BlackElo "2302"]
[Annotator "TA"]
[PlyCount "94"]
[EventDate "2024.01.10"]
[EventType "tourn"]
[EventCountry "USA"]
[SourceTitle "playchess.com"]
[Source "ChessBase"]
[SourceQuality "1"]
[TimeControl "5400+30"]

{[%evp 9,94,0,14,0,0,5,36,12,29,22,14,0,4,-23,-18,-37,-35,-30,-29,-28,-32,-25,-18,-17,-17,-84,-51,-63,-52,-85,-64,-76,-60,-64,-8,-22,0,0,0,0,0,-1,0,0,12,0,0,-47,24,9,9,9,11,28,108,57,79,53,197,197,175,157,1684,1158,2108,2054,2038,1260,1467,1433,29938,29939,29965,29969,29972,29975,29981,29982,29982,29975,29983,29984,29986,29987,29996,29997,29999]} 1. e4 {[%emt 0:02:47]} c5 {[%emt 0:00:21]} 2. Nc3 {[%emt 0:00:14]} Nc6 {[%emt 0:00:48]} 3. Bb5 {[%emt 0:00:10]} Nd4 {[%emt 0:00:11]} 4. Nf3 {[%emt 0:00:14]} a6 {[%emt 0:00:32]} 5. Bd3 {[%emt 0:00:21]} g6 {[%emt 0:00:32]} 6. O-O {[%emt 0:02:10]} Bg7 {[%emt 0:00:30]} 7. Re1 {[%emt 0:00:50]} e5 {[%emt 0:33:24]} 8. b4 {[%emt 0:18:24] White is slightly better.} d6 {[%emt 0:07:34]} 9. bxc5 {[%emt 0:03:58]} dxc5 {[%emt 0:00:10]} 10. h3 {[%emt 0:01:04]} Ne7 {[%emt 0:18:53]} 11. Rb1 {[%emt 0:02:47]} b5 {[%emt 0:03:58] Prevents Na4.} 12. a4 {[%emt 0:03:45]} b4 {[%emt 0:05:47]} 13. Nd5 {[%emt 0:06:04]} Nxf3+ {[%emt 0:00:38]} 14. Qxf3 {[%emt 0:00:06]} Nxd5 {[%emt 0:00:11]} 15. exd5 {[%emt 0:00:09]} Qd6 {[%emt 0:03:43]} 16. c3 {[%emt 0:02:46]} O-O {[%emt 0:01:12]} 17. Bc4 {[%emt 0:16:21]} (17. a5 $11 {remains equal.}) 17... a5 {[%emt 0:04:48]} 18. Qg3 {[%emt 0:14:05]} f5 {[%emt 0:06:36]} 19. cxb4 {[%emt 0:03:18]} axb4 {[%emt 0:00:15][%cal Of5f4]} 20. Bb2 {[%emt 0:00:44][%cal Rb2e5]} f4 {[%emt 0:00:10]} 21. Qb3 {[%emt 0:02:41] [#]} f3 {[%emt 0:00:45]} 22. Qe3 $1 $11 {[%emt 0:02:10][%cal Rb2e5]} fxg2 {[%emt 0:06:29]} 23. Bxe5 {[%emt 0:00:15]} Bxe5 {[%emt 0:00:12]} 24. Qxe5 {[%emt 0:00:04]} Qxe5 {[%emt 0:00:12]} 25. Rxe5 {[%emt 0:00:02]} Bxh3 {[%emt 0:01:23][%cal Of8f4]} (25... Rxa4 26. d6+ Kh8 27. Kxg2 $11) 26. d6+ {[%emt 0:03:22]} Kh8 {[%emt 0:00:21]} 27. Bb5 {[%emt 0:01:44][%cal Oe5e7]} Rad8 {[%emt 0:01:02]} 28. Rb3 {[%emt 0:02:00]} (28. d4 $1 $11 {is more appropriate.} cxd4 29. Rd5) 28... Bd7 {[%emt 0:01:02]} ({Don't go for} 28... Rf5 $2 29. Re7 Bg4 (29... Rh5 $2 30. d7 $18) 30. d7 $18 (30. Kxg2 Rxd6 31. f3 Rxd2+ 32. Kg3 Bh5 $15)) (28... Bg4 $15 29. d7 c4 (29... Bxd7 30. Rxc5 Be6 31. Rb2 $11) 30. Rxb4 Bxd7) 29. Rxc5 {[%emt 0:01:16]} Bxb5 {[%emt 0:00:33]} 30. axb5 {[%emt 0:00:23]} Rxd6 {[%emt 0:00:06][%mdl 4096] Endgame. KRR-KRR} 31. d3 {[%emt 0:00:24]} Rfd8 {[%emt 0:02:34]} (31... Rdf6 $11) 32. Kxg2 {[%emt 0:00:42]} (32. Rxb4 $16 {Threatens to win with b6.} Rb8 33. Kxg2) 32... Kg7 {[%emt 0:01:00]} 33. Rc7+ {[%emt 0:02:25]} R8d7 {[%emt 0:00:30]} ({Better is} 33... Kf6 $14) 34. Rxd7+ $18 {[%emt 0:00:13]} Rxd7 {[%emt 0:00:01]} 35. Rxb4 {[%emt 0:00:06]} Rxd3 $2 {[%emt 0:00:28] KR-KR. Loses the game.} (35... Rb7 $16 36. Kf3 Kf6) 36. b6 {[%emt 0:00:05][%cal Bb5b6,Bb6b7][%mdl 32] [#] Intending b7 and mate.} Rd8 {[%emt 0:00:06]} 37. b7 {[%emt 0:00:12]} Rb8 {[%emt 0:00:02]} 38. Kf3 {[%emt 0:00:04] Strongly threatening Ke4.} Kf6 {[%emt 0:00:28]} 39. Kf4 {[%emt 0:00:15]} h5 {[%emt 0:01:59][%cal Bh7h5,Bh5h4][%mdl 32]} 40. Rb6+ {[%emt 0:00:06] White mates.} Kg7 {[%emt 0:00:33]} 41. Kg5 {[%emt 0:00:20]} Kf7 {[%emt 0:00:29]} 42. f4 {[%emt 0:00:34][%cal Bf2f4,Bf4f5,Bf5f6][%mdl 32]} (42. Rxg6 Rxb7 43. Rf6+ Ke7 $11) 42... Kf8 {[%emt 0:00:22]} 43. Kxg6 {[%emt 0:02:38]} h4 {[%emt 0:00:06]} 44. Rb3 {[%emt 0:00:03]} Ke8 {[%emt 0:01:03]} 45. f5 {[%emt 0:00:09]} Kf8 {[%emt 0:00:30]} 46. f6 {[%emt 0:00:10]} Kg8 {[%emt 0:00:29]} 47. Rc3 {[%emt 0:00:19]} Ra8 {[%emt 0:01:02] Weighted Error Value: White=0.10 (very precise) /Black=0.34.  Loses game:     	---       	Black=1      Mistake:       	White=3     	Black=4      Inaccurate:     	White=3     	Black=2      OK:         	White=10    	Black=9      Best:        	White=3     	Black=2      Strong:       	White=1     	---} 1-0

[Event "1000GM NY Winter GM-B 2024"]
[Site "New York"]
[Date "2024.01.13"]
[Round "3.5"]
[White "Luo, Terry"]
[Black "Levine, Joseph"]
[Result "1/2-1/2"]
[ECO "E48"]
[WhiteElo "2342"]
[BlackElo "2376"]
[Annotator "RC"]
[PlyCount "73"]
[EventDate "2024.01.10"]
[EventType "tourn"]
[EventCountry "USA"]
[SourceTitle "playchess.com"]
[Source "ChessBase"]
[SourceQuality "1"]
[TimeControl "5400+30"]

1. d4 {[%emt 0:00:02]} Nf6 {[%emt 0:00:08]} 2. c4 {[%emt 0:00:03]} e6 {[%emt 0:00:04]} 3. Nc3 {[%emt 0:00:03]} Bb4 {[%emt 0:00:08]} 4. e3 {[%emt 0:00:03]} O-O {[%emt 0:00:14]} 5. Bd3 {[%emt 0:00:03]} d5 {[%emt 0:00:32]} 6. Nge2 {[%emt 0:00:39]} c5 {[%emt 0:03:38]} 7. cxd5 {[%emt 0:01:42]} cxd4 {[%emt 0:03:09]} 8. exd4 {[%emt 0:00:03]} exd5 {[%emt 0:01:54]} 9. O-O {[%emt 0:00:11]} Bg4 {[%emt 0:06:33]} 10. Bg5 {[%emt 0:03:32]} Be7 {[%emt 0:08:28]} 11. h3 {[%emt 0:07:10]} Bxe2 {[%emt 0:03:46]} 12. Bxe2 {[%emt 0:06:09]} h6 {[%emt 0:03:29]} 13. Be3 {[%emt 0:00:30]} Nc6 {[%emt 0:01:12]} 14. Rc1 {[%emt 0:01:19]} Qd7 {[%emt 0:05:21]} 15. a3 {[%emt 0:10:42]} Rad8 {[%emt 0:11:08]} 16. b4 {[%emt 0:02:53]} Bd6 {[%emt 0:02:08]} 17. Na4 {[%emt 0:04:15]} Ne4 {[%emt 0:04:09]} 18. Nc5 {[%emt 0:11:44]} Qe7 {[%emt 0:01:08]} 19. Bb5 {[%emt 0:10:16]} Nb8 {[%emt 0:05:44]} 20. Re1 {[%emt 0:01:54]} b6 {[%emt 0:03:55]} 21. Nd3 {[%emt 0:04:12]} Qf6 {[%emt 0:05:53]} 22. Qh5 {[%emt 0:04:26]} Rc8 {[%emt 0:09:15]} 23. Ne5 {[%emt 0:03:08]} Rxc1 {[%emt 0:03:25]} 24. Rxc1 {[%emt 0:00:10]} Qe6 {[%emt 0:02:36]} 25. Ba4 {[%emt 0:06:26]} a5 {[%emt 0:04:41]} 26. Nd3 {[%emt 0:04:18]} axb4 {[%emt 0:02:59]} 27. axb4 {[%emt 0:02:17]} Nf6 {[%emt 0:00:22]} 28. Qf3 {[%emt 0:00:52]} Rc8 {[%emt 0:00:39]} 29. Rxc8+ {[%emt 0:10:39]} Qxc8 {[%emt 0:00:01]} 30. Bxh6 {[%emt 0:00:30]} Qc3 {[%emt 0:03:16]} 31. Bf4 {[%emt 0:00:12]} Bxf4 {[%emt 0:02:00]} 32. Qxf4 {[%emt 0:00:36]} Na6 {[%emt 0:00:07]} 33. Qc1 {[%emt 0:02:00]} Qxc1+ {[%emt 0:01:19]} 34. Nxc1 {[%emt 0:00:01]} Nxb4 {[%emt 0:00:08]} 35. f3 {[%emt 0:00:31]} Kf8 {[%emt 0:00:14]} 36. Kf2 {[%emt 0:00:05]} Ke7 {[%emt 0:00:17]} 37. h4 {[%emt 0:00:23]} 1/2-1/2

[Event "1000GM NY Winter GM-B 2024"]
[Site "New York"]
[Date "2024.01.13"]
[Round "4.1"]
[White "Adewumi, Tanitoluwa"]
[Black "Levine, Joseph"]
[Result "0-1"]
[ECO "D02"]
[WhiteElo "2280"]
[BlackElo "2376"]
[Annotator "ChessBase"]
[PlyCount "60"]
[EventDate "2024.01.10"]
[EventType "tourn"]
[EventCountry "USA"]
[SourceTitle "playchess.com"]
[Source "ChessBase"]
[SourceQuality "1"]
[TimeControl "5400+30"]

1. Nf3 {[%emt 0:00:01]} d5 {[%emt 0:00:14]} 2. d4 {[%emt 0:00:13]} Nf6 {[%emt 0:00:07]} 3. Bf4 {[%emt 0:00:04]} e6 {[%emt 0:01:10]} 4. e3 {[%emt 0:00:07]} c5 {[%emt 0:00:18]} 5. Nbd2 {[%emt 0:00:11]} Nc6 {[%emt 0:00:25]} 6. c3 {[%emt 0:00:07]} cxd4 {[%emt 0:00:26]} 7. exd4 {[%emt 0:00:06]} Nh5 {[%emt 0:00:42]} 8. Be3 {[%emt 0:01:18]} Bd6 {[%emt 0:01:12]} 9. Ne5 {[%emt 0:01:58]} g6 {[%emt 0:02:17]} 10. Bb5 {[%emt 1:31:25]} Bd7 {[%emt 0:06:03]} 11. Bxc6 {[%emt 0:00:00]} Bxc6 {[%emt 0:01:01]} 12. Qg4 {[%emt 0:00:00]} f5 {[%emt 0:06:37]} 13. Qg5 {[%emt 0:00:00]} Qxg5 {[%emt 0:03:07]} 14. Bxg5 {[%emt 0:00:00]} h6 {[%emt 0:00:25]} 15. g4 {[%emt 0:00:00]} hxg5 {[%emt 0:05:29]} 16. gxh5 {[%emt 0:00:00]} Bxe5 {[%emt 0:01:56]} 17. dxe5 {[%emt 0:00:00]} d4 {[%emt 0:00:33]} 18. Rg1 {[%emt 0:00:00]} dxc3 {[%emt 0:00:19]} 19. bxc3 {[%emt 0:00:00]} Rxh5 {[%emt 0:00:19]} 20. Rd1 {[%emt 0:00:00]} Rd8 {[%emt 0:03:02]} 21. Ke2 {[%emt 0:00:00]} Rd5 {[%emt 0:02:51]} 22. c4 {[%emt 0:00:00]} Rxe5+ {[%emt 0:00:46]} 23. Kd3 {[%emt 0:00:00]} Ra5 {[%emt 0:01:37]} 24. Nb3 {[%emt 0:00:00]} Rxa2 {[%emt 0:01:57]} 25. Kd4 {[%emt 0:00:00]} Ba4 {[%emt 0:01:35]} 26. Rd3 {[%emt 0:00:00]} Bxb3 {[%emt 0:03:23]} 27. Rxb3 {[%emt 0:00:00]} b6 {[%emt 0:01:15]} 28. Re1 {[%emt 0:00:00]} Rh4+ {[%emt 0:00:51]} 29. Ke5 {[%emt 0:00:00]} Ke7 {[%emt 0:00:26]} 30. f3 {[%emt 0:00:00]} Rxc4 {[%emt 0:55:07]} 0-1